fUST/lending_fUST_20250809
["ID","MTS","AMOUNT","RATE_DAILY","PERIOD"]
[378160854,1754754640834,-460.0,0.00021957,2]
[378160855,1754754640843,-460.0,0.00021957,2]
[378160856,1754754640853,-460.0,0.00021957,2]
[378160858,1754754640862,-460.0,0.00021957,2]
[378160860,1754754640871,-460.0,0.00021957,2]
[378160861,1754754640881,-460.0,0.00021957,2]
[378160862,1754754640891,-534.18,0.00021957,2]
[378160863,1754754640900,-460.0,0.00021957,2]
[378160864,1754754640910,-460.0,0.00021957,2]
[378160865,1754754640919,-460.0,0.00021957,2]
[378160866,1754754640928,-444.12532515,0.00021957,2]
[378160867,1754754640938,-460.0,0.00021957,2]
[378160868,1754754640947,-530.48,0.00021957,2]
[378160869,1754754640956,-918.35,0.00021957,2]
[378160870,1754754640965,-460.0,0.00021958,2]
[378160871,1754754640975,-1028.87,0.00021958,2]
[378160872,1754754640984,-2982.9,0.00021958,2]
[378160873,1754754640994,-468.01,0.00021958,2]
[378160874,1754754641003,-567.58,0.00021958,2]
[378160875,1754754641012,-460.0,0.00021958,2]
[378160876,1754754641022,-885.77,0.00021958,2]
[378160877,1754754641032,-700.71,0.00021958,2]
[378160878,1754754641042,-20000.0,0.00022,5]
[378160879,1754754641051,-480.78,0.00022,2]
[378160880,1754754641061,-168.0,0.00022,2]
[378160881,1754754641071,-460.0,0.00022059,2]
[378160882,1754754641080,-493.15,0.00022059,2]
[378160883,1754754641090,-460.0,0.00022059,2]
[378160884,1754754641099,-460.0,0.00022059,2]
[378160885,1754754641108,-460.0,0.00022059,2]
[378160886,1754754641118,-460.0,0.00022059,2]
[378160887,1754754641127,-460.0,0.00022059,2]
[378160888,1754754641137,-559.28,0.00022059,2]
[378160889,1754754641150,-166.12238018,0.00022059,2]
[378160890,1754754641160,-460.0,0.00022059,2]
[378160891,1754754641169,-460.0,0.00022059,2]
[378160892,1754754641178,-460.0,0.00022059,2]
[378160893,1754754641188,-460.0,0.00022059,2]
[378160894,1754754641198,-460.0,0.00022059,2]
[378160895,1754754641208,-460.0,0.00022059,2]
[378160896,1754754641219,-460.0,0.00022059,2]
[378160897,1754754641228,-460.0,0.00022059,2]
[378160898,1754754641238,-460.0,0.00022059,2]
[378160899,1754754641247,-460.0,0.00022059,2]
[378160900,1754754641256,-460.0,0.00022059,2]
[378160901,1754754641266,-460.0,0.00022059,2]
[378160902,1754754641275,-460.0,0.00022059,2]
[378160903,1754754641285,-460.0,0.00022059,2]
[378160904,1754754641295,-538.71538902,0.00022059,2]
[378160905,1754754641304,-460.0,0.00022059,2]
[378160906,1754754641313,-367.02677627,0.00022059,2]
[378160907,1754754641323,-460.0,0.00022059,2]
[378160908,1754754641333,-580.29633935,0.00022059,2]
[378160909,1754754641342,-224.46,0.00022059,2]
[378160910,1754754641352,-460.0,0.00022059,2]
[378160911,1754754641374,-460.0,0.00022059,2]
[378160912,1754754641385,-1120.89427139,0.00022071,2]
[378160913,1754754641395,-200.0,0.00022087,15]
[378160914,1754754641407,-200.0,0.00022087,15]
[378160915,1754754641417,-200.0,0.00022087,15]
[378160916,1754754641428,-200.0,0.00022087,15]
[378160917,1754754641439,-200.0,0.00022087,15]
[378160918,1754754641449,-302.0,0.00022099,2]
[378160919,1754754641461,-460.0,0.00022201,2]
[378160920,1754754641471,-460.0,0.00022201,2]
[378160921,1754754641481,-460.0,0.00022201,2]
[378160922,1754754641491,-460.0,0.00022201,2]
[378160923,1754754641501,-460.0,0.00022201,2]
[378160924,1754754641511,-460.0,0.00022201,2]
[378160925,1754754641520,-523.71,0.00022201,2]
[378160926,1754754641530,-460.0,0.00022201,2]
[378160927,1754754641542,-460.0,0.00022201,2]
[378160928,1754754641553,-460.0,0.00022201,2]
[378160929,1754754641562,-460.0,0.00022201,2]
[378160930,1754754641572,-460.0,0.00022201,2]
[378160931,1754754641582,-977.37,0.00022201,2]
[378160932,1754754641592,-1788.84,0.00022201,2]
[378160933,1754754641602,-941.46,0.00022201,2]
[378160934,1754754641613,-460.0,0.00022201,2]
[378160935,1754754641623,-1000.0,0.00022221,2]
[378160936,1754754641632,-1000.0,0.00022221,2]
[378160937,1754754641642,-1000.0,0.00022221,2]
[378160938,1754754641652,-460.0,0.00022221,2]
[378160939,1754754641662,-460.0,0.00022221,2]
[378160940,1754754641672,-460.0,0.00022221,2]
[378160941,1754754641682,-658.26,0.00022221,2]
[378160942,1754754641692,-460.0,0.00022221,2]
[378160943,1754754641702,-1001.03,0.00022221,2]
[378160944,1754754641712,-460.0,0.00022222,2]
[378160945,1754754641722,-460.0,0.00022222,2]
[378160946,1754754641732,-231.59178084,0.00022222,2]
[378160947,1754754641743,-460.0,0.00022222,2]
[378160948,1754754641753,-460.0,0.00022222,2]
[378160949,1754754641763,-1011.5,0.00022222,2]
[378160950,1754754641774,-496.69664594,0.00022222,2]
[378160951,1754754641784,-460.0,0.00022222,2]
[378160952,1754754641794,-1404.25,0.00022222,2]
[378160953,1754754641869,-460.0,0.00022223,2]
[378160954,1754754641880,-460.0,0.00022223,2]
[378160955,1754754641892,-580.91,0.00022223,2]
[378160956,1754754641902,-460.0,0.00022223,2]
[378160957,1754754641911,-1391.71,0.00022223,2]
[378160958,1754754641920,-460.0,0.00022223,2]
[378160959,1754754641930,-460.0,0.00022223,2]
[378160960,1754754641939,-460.0,0.00022223,2]
[378160961,1754754641949,-681.18,0.00022223,2]
[378160962,1754754641959,-576.08,0.00022223,2]
[378160963,1754754641968,-477.3729841,0.00022231,2]
[378160964,1754754641978,-460.0,0.00022231,2]
[378160965,1754754641988,-460.0,0.00022231,2]
[378160966,1754754641998,-460.0,0.00022231,2]
[378160967,1754754642007,-460.0,0.00022231,2]
[378160968,1754754642017,-460.0,0.00022231,2]
[378160969,1754754642026,-460.0,0.00022231,2]
[378160970,1754754642036,-460.0,0.00022231,2]
[378160971,1754754642045,-460.0,0.00022231,2]
[378160972,1754754642055,-697.3,0.00022231,2]
[378160973,1754754642064,-460.0,0.00022231,2]
[378160974,1754754642074,-460.0,0.00022231,2]
[378160975,1754754642083,-460.0,0.00022231,2]
[378160976,1754754642093,-460.0,0.00022231,2]
[378160977,1754754642102,-460.0,0.00022231,2]
[378160978,1754754642112,-460.0,0.00022231,2]
[378160979,1754754642121,-460.0,0.00022231,2]
[378160980,1754754642130,-429.75,0.00022231,2]
[378160981,1754754642142,-460.0,0.00022231,2]
[378160982,1754754642151,-410.77880587,0.00022231,2]
[378160983,1754754642161,-460.0,0.00022231,2]
[378160984,1754754642171,-460.0,0.00022231,2]
[378160985,1754754642181,-460.0,0.00022231,2]
[378160986,1754754642191,-534.18,0.00022231,2]
[378160987,1754754642200,-460.0,0.00022231,2]
[378160988,1754754642210,-460.0,0.00022231,2]
[378160989,1754754642220,-460.0,0.00022231,2]
[378160990,1754754642229,-530.48,0.00022231,2]
[378160991,1754754642239,-918.35,0.00022231,2]
[378160992,1754754642248,-460.0,0.00022232,2]
[378160993,1754754642257,-1028.87,0.00022232,2]
[378160994,1754754642267,-2982.9,0.00022232,2]
[378160995,1754754642276,-567.58,0.00022232,2]
[378160996,1754754642285,-460.0,0.00022232,2]
[378160997,1754754642295,-885.77,0.00022232,2]
[378160998,1754754642305,-700.71,0.00022232,2]
[378160999,1754754642315,-1120.89427139,0.00022233,2]
[378161000,1754754642324,-392.0,0.00022292,2]
[378161001,1754754642334,-493.15,0.00022333,2]
[378161002,1754754642343,-460.0,0.00022333,2]
[378161003,1754754642352,-460.0,0.00022333,2]
[378161004,1754754642362,-460.0,0.00022333,2]
[378161005,1754754642371,-559.28,0.00022333,2]
[378161007,1754754642380,-580.16894444,0.00022333,2]
[378161009,1754754642390,-509.95,0.00022333,2]
[378161010,1754754642400,-460.0,0.00022333,2]
[378161011,1754754642413,-460.0,0.00022333,2]
[378161012,1754754642422,-460.0,0.00022333,2]
[378161013,1754754642432,-460.0,0.00022333,2]
[378161014,1754754642441,-460.0,0.00022333,2]
[378161015,1754754642450,-460.0,0.00022333,2]
[378161016,1754754642460,-460.0,0.00022333,2]
[378161017,1754754642470,-460.0,0.00022333,2]
[378161018,1754754642480,-460.0,0.00022333,2]
[378161019,1754754642489,-460.0,0.00022333,2]
[378161020,1754754642499,-460.0,0.00022333,2]
[378161022,1754754642509,-460.0,0.00022333,2]
[378161024,1754754642519,-651.75001232,0.00022465,2]
[378161025,1754754642528,-460.0,0.00022475,2]
[378161027,1754754642537,-460.0,0.00022475,2]
[378161028,1754754642547,-460.0,0.00022475,2]
[378161029,1754754642556,-460.0,0.00022475,2]
[378161030,1754754642566,-523.71,0.00022475,2]
[378161031,1754754642576,-460.0,0.00022475,2]
[378161032,1754754642586,-460.0,0.00022475,2]
[378161033,1754754642595,-460.0,0.00022475,2]
[378161034,1754754642605,-262.12036294,0.00022475,2]
[378161035,1754754642741,-197.87963706,0.00022475,2]
[378161036,1754754642751,-460.0,0.00022475,2]
[378161037,1754754642760,-977.37,0.00022475,2]
[378161038,1754754642769,-1788.84,0.00022475,2]
[378161040,1754754642779,-941.46,0.00022475,2]
[378161041,1754754642789,-224.37148239,0.00022475,2]
[378161042,1754754642798,-460.0,0.00022495,2]
[378161043,1754754642807,-460.0,0.00022495,2]
[378161044,1754754642817,-658.26,0.00022495,2]
[378161045,1754754642826,-460.0,0.00022495,2]
[378161046,1754754642835,-1001.03,0.00022495,2]
[378161048,1754754642844,-460.0,0.00022496,2]
[378161050,1754754642855,-460.0,0.00022496,2]
[378161051,1754754642865,-1011.5,0.00022496,2]
[378161052,1754754642874,-534.6,0.00022496,2]
[378161053,1754754642883,-1404.25,0.00022496,2]
[378161054,1754754642893,-460.0,0.00022497,2]
[378161056,1754754642902,-460.0,0.00022497,2]
[378161058,1754754642912,-580.91,0.00022497,2]
[378161059,1754754642922,-460.0,0.00022497,2]
[378161060,1754754642931,-1391.71,0.00022497,2]
[378161061,1754754642941,-460.0,0.00022497,2]
[378161062,1754754642951,-460.0,0.00022497,2]
[378161063,1754754642960,-460.0,0.00022497,2]
[378161064,1754754642970,-681.18,0.00022497,2]
[378161065,1754754642979,-576.08,0.00022497,2]
[378161066,1754754642989,-460.0,0.00022505,2]
[378161067,1754754643000,-460.0,0.00022505,2]
[378161068,1754754643009,-460.0,0.00022505,2]
[378161069,1754754643019,-460.0,0.00022505,2]
[378161070,1754754643030,-460.0,0.00022505,2]
[378161071,1754754643040,-460.0,0.00022505,2]
[378161072,1754754643049,-460.0,0.00022505,2]
[378161073,1754754643060,-460.0,0.00022505,2]
[378161074,1754754643070,-697.3,0.00022505,2]
[378161077,1754754643080,-526.76337393,0.00022505,2]
[378161079,1754754643090,-460.0,0.00022505,2]
[378161081,1754754643101,-460.0,0.00022505,2]
[378161083,1754754643111,-460.0,0.00022505,2]
[378161084,1754754643121,-460.0,0.00022505,2]
[378161085,1754754643130,-460.0,0.00022505,2]
[378161086,1754754643143,-460.0,0.00022505,2]
[378161087,1754754643153,-460.0,0.00022505,2]
[378161088,1754754643163,-460.0,0.00022505,2]
[378161089,1754754643173,-460.0,0.00022505,2]
[378161090,1754754643184,-460.0,0.00022505,2]
[378161091,1754754643194,-534.18,0.00022505,2]
[378161092,1754754643204,-460.0,0.00022505,2]
[378161094,1754754643215,-460.0,0.00022505,2]
[378161095,1754754643224,-460.0,0.00022505,2]
[378161096,1754754643234,-530.48,0.00022505,2]
[378161097,1754754643244,-918.35,0.00022505,2]
[378161098,1754754643254,-460.0,0.00022506,2]
[378161099,1754754643263,-1028.87,0.00022506,2]
[378161100,1754754643273,-2982.9,0.00022506,2]
[378161101,1754754643284,-567.58,0.00022506,2]
[378161102,1754754643294,-460.0,0.00022506,2]
[378161103,1754754643304,-885.77,0.00022506,2]
[378161104,1754754643314,-700.71,0.00022506,2]
[378161105,1754754643324,-493.15,0.00022607,2]
[378161106,1754754643333,-460.0,0.00022607,2]
[378161107,1754754643343,-460.0,0.00022607,2]
[378161108,1754754643354,-460.0,0.00022607,2]
[378161109,1754754643364,-559.28,0.00022607,2]
[378161110,1754754643374,-460.0,0.00022607,2]
[378161111,1754754643385,-460.0,0.00022607,2]
[378161112,1754754643395,-460.0,0.00022607,2]
[378161113,1754754643405,-460.0,0.00022607,2]
[378161114,1754754643415,-460.0,0.00022607,2]
[378161115,1754754643425,-460.0,0.00022607,2]
[378161116,1754754643435,-460.0,0.00022607,2]
[378161117,1754754643446,-460.0,0.00022607,2]
[378161118,1754754643456,-460.0,0.00022607,2]
[378161119,1754754643466,-460.0,0.00022607,2]
[378161120,1754754643476,-246.8,0.00022607,2]
[378161121,1754754643486,-250.0,0.0002262,2]
[378161122,1754754643496,-511.05840491,0.00022639,2]
[378161123,1754754643506,-504.58546499,0.00022639,2]
[378161124,1754754643515,-160.0,0.00022641,2]
[378161125,1754754643525,-160.0,0.00022641,2]
[378161126,1754754643535,-160.0,0.00022641,2]
[378161127,1754754643544,-461.55179734,0.00022641,2]
[378161128,1754754643554,-842.95011917,0.00022641,2]
[378161129,1754754643564,-527.77735381,0.00022641,2]
[378161130,1754754643573,-216.61183532,0.00022641,2]
[378161131,1754754643584,-312.16666667,0.00022641,2]
[378161132,1754754643593,-231.92402426,0.00022641,2]
[378161133,1754754643602,-160.0,0.00022641,2]
[378161134,1754754643612,-215.40758176,0.00022641,2]
[378161135,1754754643621,-12666.14847857,0.00022641,2]
[378161136,1754754643630,-160.0,0.00022641,2]
[378161137,1754754643640,-160.0,0.00022641,2]
[378161138,1754754643651,-153.0,0.00022717,2]
[378161139,1754754643668,-153.0,0.00022717,2]
[378161140,1754754643678,-153.0,0.00022717,2]
[378161141,1754754643689,-153.0,0.00022717,2]
[378161142,1754754643700,-153.0,0.00022717,2]
[378161143,1754754643709,-153.0,0.00022717,2]
[378161144,1754754643720,-153.0,0.00022717,2]
[378161145,1754754643729,-153.0,0.00022717,2]
[378161146,1754754643739,-153.0,0.00022717,2]
[378161147,1754754643749,-153.0,0.00022717,2]
[378161148,1754754643758,-153.0,0.00022717,2]
[378161149,1754754643768,-153.0,0.00022717,2]
[378161150,1754754643777,-153.0,0.00022717,2]
[378161151,1754754643786,-153.0,0.00022717,2]
[378161152,1754754643796,-153.0,0.00022717,2]
[378161153,1754754643805,-153.0,0.00022717,2]
[378161154,1754754643815,-153.0,0.0002274,2]
[378161155,1754754643824,-153.0,0.0002274,2]
[378161156,1754754643834,-153.0,0.0002274,2]
[378161157,1754754643843,-153.0,0.0002274,2]
[378161158,1754754643853,-153.0,0.0002274,2]
[378161159,1754754643862,-153.0,0.0002274,2]
[378161160,1754754643871,-153.0,0.0002274,2]
[378161161,1754754643880,-153.0,0.0002274,2]
[378161162,1754754643890,-153.0,0.0002274,2]
[378161163,1754754643900,-391.16315626,0.00022749,2]
[378161164,1754754643909,-460.0,0.00022749,2]
[378161165,1754754643918,-460.0,0.00022749,2]
[378161166,1754754643928,-460.0,0.00022749,2]
[378161167,1754754643938,-523.71,0.00022749,2]
[378161168,1754754643948,-460.0,0.00022749,2]
[378161169,1754754643957,-460.0,0.00022749,2]
[378161170,1754754643966,-460.0,0.00022749,2]
[378161171,1754754643976,-460.0,0.00022749,2]
[378161172,1754754643987,-977.37,0.00022749,2]
[378161173,1754754643996,-1788.84,0.00022749,2]
[378161174,1754754644005,-941.46,0.00022749,2]
[378161175,1754754644014,-1500.0,0.00022768,2]
[378161176,1754754644024,-1500.0,0.00022768,2]
[378161177,1754754644033,-1000.0,0.00022768,2]
[378161178,1754754644042,-460.0,0.00022769,2]
[378161179,1754754644052,-658.26,0.00022769,2]
[378161180,1754754644062,-1001.03,0.00022769,2]
[378161181,1754754644071,-460.0,0.0002277,2]
[378161182,1754754644081,-537.37,0.0002277,2]
[378161183,1754754644090,-1011.5,0.0002277,2]
[378161184,1754754644099,-1404.25,0.0002277,2]
[378161185,1754754644109,-460.0,0.00022771,2]
[378161186,1754754644119,-460.0,0.00022771,2]
[378161187,1754754644129,-580.91,0.00022771,2]
[378161188,1754754644142,-460.0,0.00022771,2]
[378161189,1754754644152,-1391.71,0.00022771,2]
[378161190,1754754644162,-460.0,0.00022771,2]
[378161191,1754754644173,-460.0,0.00022771,2]
[378161192,1754754644183,-460.0,0.00022771,2]
[378161193,1754754644193,-681.18,0.00022771,2]
[378161194,1754754644203,-576.08,0.00022771,2]
[378161195,1754754644213,-460.0,0.00022779,2]
[378161196,1754754644223,-460.0,0.00022779,2]
[378161197,1754754644234,-540.0,0.00022779,2]
[378161198,1754754644243,-460.0,0.00022779,2]
[378161199,1754754644253,-460.0,0.00022779,2]
[378161200,1754754644263,-460.0,0.00022779,2]
[378161201,1754754644273,-460.0,0.00022779,2]
[378161202,1754754644282,-460.0,0.00022779,2]
[378161203,1754754644292,-697.3,0.00022779,2]
[378161204,1754754644301,-460.0,0.00022779,2]
[378161205,1754754644311,-460.0,0.00022779,2]
[378161206,1754754644321,-460.0,0.00022779,2]
[378161207,1754754644331,-460.0,0.00022779,2]
[378161208,1754754644341,-460.0,0.00022779,2]
[378161209,1754754644351,-460.0,0.00022779,2]
[378161210,1754754644361,-213.56704222,0.00022779,2]
[378161211,1754754644371,-460.0,0.00022779,2]
[378161212,1754754644382,-460.0,0.00022779,2]
[378161213,1754754644392,-534.18,0.00022779,2]
[378161214,1754754644402,-358.42761962,0.00022779,2]
[378161215,1754754644412,-460.0,0.00022779,2]
[378161216,1754754644423,-530.48,0.00022779,2]
[378161217,1754754644433,-918.35,0.00022779,2]
[378161218,1754754644443,-460.0,0.0002278,2]
[378161219,1754754644452,-1028.87,0.0002278,2]
[378161220,1754754644462,-2982.9,0.0002278,2]
[378161221,1754754644472,-567.58,0.0002278,2]
[378161222,1754754644481,-460.0,0.0002278,2]
[378161223,1754754644491,-885.77,0.0002278,2]
[378161224,1754754644501,-493.15,0.00022881,2]
[378161225,1754754644510,-186.7298308,0.00022881,2]
[378161226,1754754644521,-460.0,0.00022881,2]
[378161227,1754754644530,-559.28,0.00022881,2]
[378161228,1754754644540,-460.0,0.00022881,2]
[378161229,1754754644550,-460.0,0.00022881,2]
[378161230,1754754644561,-460.0,0.00022881,2]
[378161231,1754754644570,-354.95418606,0.00022881,2]
[378161232,1754754644580,-460.0,0.00022881,2]
[378161233,1754754644590,-460.0,0.00022881,2]
[378161234,1754754644599,-460.0,0.00022881,2]
[378161235,1754754644609,-156.066466,0.00022898,14]
[378161236,1754754644619,-160.0,0.00023,2]
[378161237,1754754644629,-168.0,0.00023014,7]
[378161238,1754754644639,-460.0,0.00023023,2]
[378161239,1754754644649,-460.0,0.00023023,2]
[378161240,1754754644658,-460.0,0.00023023,2]
[378161241,1754754644668,-523.71,0.00023023,2]
[378161242,1754754644678,-460.0,0.00023023,2]
[378161243,1754754644689,-460.0,0.00023023,2]
[378161244,1754754644699,-460.0,0.00023023,2]
[378161245,1754754644709,-460.0,0.00023023,2]
[378161246,1754754644719,-977.37,0.00023023,2]
[378161247,1754754644728,-1788.84,0.00023023,2]
[378161248,1754754644738,-941.46,0.00023023,2]
[378161249,1754754644748,-468.88744519,0.00023043,2]
[378161250,1754754644758,-658.26,0.00023043,2]
[378161251,1754754644768,-1001.03,0.00023043,2]
[378161252,1754754644778,-242.08814127,0.00023044,2]
[378161253,1754754644788,-1011.5,0.00023044,2]
[378161254,1754754644798,-1404.25,0.00023044,2]
[378161255,1754754644808,-460.0,0.00023045,2]
[378161256,1754754644818,-580.91,0.00023045,2]
[378161257,1754754644828,-460.0,0.00023045,2]
[378161258,1754754644837,-1391.71,0.00023045,2]
[378161259,1754754644847,-460.0,0.00023045,2]
[378161260,1754754644857,-460.0,0.00023045,2]
[378161261,1754754644867,-681.18,0.00023045,2]
[378161262,1754754644877,-576.08,0.00023045,2]
[378161263,1754754644887,-2027.2,0.00023046,3]
[378161264,1754754644897,-1013.6,0.00023046,3]
[378161265,1754754644906,-506.8,0.00023046,3]
[378161266,1754754644917,-460.0,0.00023053,2]
[378161267,1754754644927,-460.0,0.00023053,2]
[378161268,1754754644937,-460.0,0.00023053,2]
[378161269,1754754644947,-460.0,0.00023053,2]
[378161270,1754754644957,-460.0,0.00023053,2]
[378161271,1754754644967,-697.3,0.00023053,2]
[378161272,1754754644978,-460.0,0.00023053,2]
[378161273,1754754644987,-460.0,0.00023053,2]
[378161274,1754754644998,-460.0,0.00023053,2]
[378161275,1754754645008,-460.0,0.00023053,2]
[378161276,1754754645018,-460.0,0.00023053,2]
[378161277,1754754645028,-460.0,0.00023053,2]
[378161278,1754754645038,-460.0,0.00023053,2]
[378161279,1754754645048,-460.0,0.00023053,2]
[378161280,1754754645058,-534.18,0.00023053,2]
[378161281,1754754645068,-207.15,0.00023053,2]
[378161282,1754754645078,-530.48,0.00023053,2]
[378161283,1754754645088,-918.35,0.00023053,2]
[378161284,1754754645098,-460.0,0.00023054,2]
[378161285,1754754645108,-1028.87,0.00023054,2]
[378161286,1754754645118,-2982.9,0.00023054,2]
[378161287,1754754645127,-567.58,0.00023054,2]
[378161288,1754754645139,-460.0,0.00023054,2]
[378161289,1754754645151,-885.77,0.00023054,2]
[378161290,1754754645161,-493.15,0.00023155,2]
[378161291,1754754645171,-460.0,0.00023155,2]
[378161292,1754754645183,-559.28,0.00023155,2]
[378161293,1754754645194,-460.0,0.00023155,2]
[378161294,1754754645204,-460.0,0.00023155,2]
[378161295,1754754645351,-460.0,0.00023155,2]
[378161296,1754754645361,-151.0,0.00023198,7]
[378161297,1754754645371,-151.0,0.00023198,7]
[378161298,1754754645380,-151.0,0.00023198,7]
[378161299,1754754645390,-480.78,0.000232,2]
[378161300,1754754645399,-35470.86051187,0.00023259,2]
[378161301,1754754645409,-151.0,0.00023293,7]
[378161302,1754754645418,-151.0,0.00023293,7]
[378161303,1754754645428,-460.0,0.00023297,2]
[378161304,1754754645437,-460.0,0.00023297,2]
[378161305,1754754645447,-460.0,0.00023297,2]
[378161306,1754754645456,-523.71,0.00023297,2]
[378161307,1754754645466,-460.0,0.00023297,2]
[378161308,1754754645475,-460.0,0.00023297,2]
[378161309,1754754645485,-460.0,0.00023297,2]
[378161310,1754754645494,-460.0,0.00023297,2]
[378161311,1754754645504,-977.37,0.00023297,2]
[378161312,1754754645513,-1788.84,0.00023297,2]
[378161313,1754754645523,-941.46,0.00023297,2]
[378161314,1754754645533,-2183.31810187,0.00023301,2]
[378161315,1754754645543,-658.26,0.00023317,2]
[378161316,1754754645552,-1001.03,0.00023317,2]
[378161317,1754754645561,-1011.5,0.00023318,2]
[378161318,1754754645571,-1404.25,0.00023318,2]
[378161319,1754754645580,-460.0,0.00023319,2]
[378161320,1754754645590,-580.91,0.00023319,2]
[378161321,1754754645599,-460.0,0.00023319,2]
[378161322,1754754645609,-1391.71,0.00023319,2]
[378161323,1754754645619,-460.0,0.00023319,2]
[378161324,1754754645628,-460.0,0.00023319,2]
[378161325,1754754645638,-681.18,0.00023319,2]
[378161326,1754754645647,-576.08,0.00023319,2]
[378161327,1754754645657,-460.0,0.00023327,2]
[378161328,1754754645667,-460.0,0.00023327,2]
[378161329,1754754645676,-460.0,0.00023327,2]
[378161330,1754754645686,-697.3,0.00023327,2]
[378161331,1754754645696,-460.0,0.00023327,2]
[378161332,1754754645705,-460.0,0.00023327,2]
[378161333,1754754645714,-460.0,0.00023327,2]
[378161334,1754754645724,-460.0,0.00023327,2]
[378161335,1754754645734,-460.0,0.00023327,2]
[378161336,1754754645744,-460.0,0.00023327,2]
[378161337,1754754645753,-460.0,0.00023327,2]
[378161338,1754754645763,-460.0,0.00023327,2]
[378161339,1754754645772,-534.18,0.00023327,2]
[378161340,1754754645781,-530.48,0.00023327,2]
[378161341,1754754645791,-918.35,0.00023327,2]
[378161342,1754754645800,-220.64,0.00023328,2]
[378161343,1754754645810,-1028.87,0.00023328,2]
[378161344,1754754645821,-2982.9,0.00023328,2]
[378161345,1754754645830,-567.58,0.00023328,2]
[378161346,1754754645839,-460.0,0.00023328,2]
[378161347,1754754645848,-885.77,0.00023328,2]
[378161348,1754754645858,-2264.10087164,0.00023356,2]
[378161349,1754754645867,-12322.43212125,0.00023409,2]
[378161350,1754754645877,-1279.29288966,0.00023411,2]
[378161351,1754754645886,-493.15,0.00023429,2]
[378161352,1754754645896,-460.0,0.00023429,2]
[378161353,1754754645905,-559.28,0.00023429,2]
[378161354,1754754645915,-460.0,0.00023429,2]
[378161355,1754754645925,-460.0,0.00023429,2]
[378161356,1754754645935,-460.0,0.00023429,2]
[378161357,1754754645944,-2604.39304923,0.0002349,2]
[378161358,1754754645953,-556.0,0.00023513,2]
[378161359,1754754645962,-420.0,0.00023539,2]
[378161360,1754754645972,-460.0,0.00023571,2]
[378161361,1754754645981,-460.0,0.00023571,2]
[378161362,1754754645991,-460.0,0.00023571,2]
[378161363,1754754646000,-523.71,0.00023571,2]
[378161364,1754754646009,-460.0,0.00023571,2]
[378161365,1754754646019,-460.0,0.00023571,2]
[378161366,1754754646028,-460.0,0.00023571,2]
[378161367,1754754646038,-460.0,0.00023571,2]
[378161368,1754754646048,-977.37,0.00023571,2]
[378161369,1754754646057,-1788.84,0.00023571,2]
[378161370,1754754646066,-151.0,0.00023571,7]
[378161371,1754754646076,-941.46,0.00023571,2]